Cogmind - Beta 17.1 @@@ ROGUE MODE // 2026.08.23 @ 13:36:45 Player: H3-MLN Result: Destroyed by S-10 Pest with Light Assault Rifle Performance ------------- Evolutions (0) 0 Regions Visited (2) 400 Robots Destroyed (35) 175 Value Destroyed (794) 794 Prototype IDs (3) 60 Alien Tech Used (0) 0 Bonus (6350) 6350 TOTAL SCORE: 7779 Bonus ------- Prayed to X0-1V1 5000 Major X0-1V1 Interference 1350 Cogmind --------- Core Integrity 0/100 Matter 266/300 Energy 960/960 System Corruption 0% Temperature Cool (0) Movement Treading (250) Ox1 Location -10/Mines Parts ------- > --- POWER (1) -------- Light Fission Core (fused) > --- PROPULSION (2) --- Improved Treads (fused) Spiked Treads (fused) > --- UTILITY (2) ------ High-capacity Storage Unit Self-contained Transmogrifier > --- WEAPON (2) ------- Enhanced Autogun (fused) Gauss Rifle (fused) > --- INVENTORY (20) --- Ion Engine Light Treads Light Treads Light Treads Advanced Treads Large Storage Unit Medium Matter Pod (100) Transport Network Coupler Salvage Targeting Computer Hardened Light Armor Plating Hardened Light Armor Plating Hardened Light Armor Plating Hardened Light Armor Plating Trap Extractor (0/4) Trap Extractor (0/4) Improved Trap Extractor (0/6) X0-1V1's Piety Tracker Light Assault Rifle Light Assault Rifle Mining Laser Peak State ------------ > --- POWER ------------ Cooled Fission Core > --- PROPULSION ------- Improved Treads Spiked Treads > --- UTILITY ---------- High-capacity Storage Unit Self-contained Transmogrifier > --- WEAPON ----------- Enhanced Autogun Flak Cannon > --- INVENTORY -------- Ion Engine Light Treads Light Treads Light Treads Advanced Treads Large Storage Unit Medium Matter Pod Transport Network Coupler Salvage Targeting Computer Hardened Light Armor Plating Hardened Light Armor Plating Hardened Light Armor Plating Hardened Light Armor Plating Trap Extractor Trap Extractor Improved Trap Extractor X0-1V1's Piety Tracker Light Assault Rifle Light Assault Rifle Mining Laser [Rating: 32] Favorites ----------- Power Ion Engine Engine Ion Engine Power Core Light Fission Core Propulsion Spiked Treads Treads Spiked Treads Leg Aluminum Leg Wheel Compact Wheel Utility High-capacity Storage Unit Device Self-contained Transmogrifier Storage High-capacity Storage Unit Protection Hardened Light Armor Plating Weapon Light Assault Rifle Energy Gun Medium Laser Ballistic Gun Light Assault Rifle Ballistic Cannon Flak Cannon Impact Weapon Maul Build | -11 -10 -10 ------- Run | Yrd Mat Min Slots Evolved . | . . . Power . | . . . Propulsion . | . . . Utility . | . . . Weapon . | . . . Parts Attached 16 | 7 7 2 Power 3 | 1 1 1 Engine 3 | 1 1 1 Core . | . . . Reactor . | . . . Propulsion 3 | 2 1 . Treads 2 | 1 1 . Leg . | . . . Wheel 1 | 1 . . Hover . | . . . Flight . | . . . Utility 4 | 2 2 . Device 1 | 1 . . Storage 2 | 1 1 . Processor . | . . . Hackware . | . . . Protection 1 | . 1 . Artifact . | . . . Weapon 6 | 2 3 1 Energy Gun 2 | 2 . . Energy Cannon . | . . . Ballistic Gun 3 | . 3 . Ballistic Cannon 1 | . . 1 Launcher . | . . . Special Weapon . | . . . Impact Weapon . | . . . Slashing Weapon . | . . . Piercing Weapon . | . . . Special Melee Weapon . | . . . Unidentified Prototypes . | . . . Parts Lost . | . . . Power . | . . . Propulsion . | . . . Utility . | . . . Weapon . | . . . Highest Loss Streak . | . . . To Critical Strikes . | . . . Average Backups 17 | 2 16 20 Power 1 | . 1 1 Propulsion 3 | 1 3 4 Utility 9 | . 7 12 Weapon 3 | . 4 3 Tool/Special . | . . . Unused Backups 24 | . 3 21 Power 1 | . . 1 Propulsion 6 | . 1 5 Utility 13 | . 1 12 Weapon 4 | . 1 3 Tool/Special . | . . . Average Slot Usage (%) 99 | . 99 100 Engine 12 | . 14 10 Core 1 | . . 3 Treads 19 | . 14 28 Leg 2 | . 4 . Wheel 5 | . 9 . Device 10 | . 8 14 Storage 13 | . 13 14 Protection 3 | . 5 . Energy Gun 5 | . 9 . Ballistic Gun 13 | . 11 16 Ballistic Cannon 6 | . 5 9 Impact Weapon 1 | . 1 1 Peak Build Rating 32 | 7 25 32 Average Rating 19 | 4 13 30 On Entrance 10 | . 7 25 Avg Prop Armor Cover (%) 11 | 14 11 . Naked Turns . | . . . Heaviest Build 63 | 12 53 63 Greatest Support 43 | 20 40 43 Greatest Overweight (x) 3 | . 3 1 Average Overweight (x) 1 | . 2 1 Largest Inventory Capacity 20 | 8 20 20 Average Capacity 19 | 6 19 20 Most Carried 20 | 4 20 20 Average Carried 17 | 2 16 19 Final Capacity 20 | 8 20 20 Final Carried 20 | 4 20 20 Transmogrified Parts 11 | . 7 4 Integrity Recovered 263 | . 214 49 Class Distribution -------------------- 100% | Mutant Dominant Class ---------------- Mutant | -10/Materials Mutant | -10/Mines Resources | -11 -10 -10 ----------- Run | Yrd Mat Min Matter Collected 767 | 270 345 152 Remotely . | . . . Salvage Created 1253 | 72 955 226 Parts 68 | 5 42 21 Haulers Intercepted 2 | . 2 . Recyclers Shooed 3 | . 3 . Parts Field Recycled . | . . . Retrieved Matter . | . . . Parts Self-Destructed . | . . . Prevented . | . . . Parts Restored . | . . . Kills | -11 -10 -10 ------- Run | Yrd Mat Min Combat Hostiles Destroyed 22 | . 15 7 Guns 14 | . 11 3 Cannons 7 | . 3 4 AOE 1 | . 1 . Classes Destroyed 7 | 2 5 . Worker 2 | . 2 . Tunneler 3 | 1 1 1 Hauler 2 | . 2 . Recycler 4 | 1 3 . Watcher 2 | . 2 . Swarmer 4 | . 2 2 Grunt 18 | . 13 5 Best Kill Streak 5 | 1 4 5 Combat Bots Only 5 | . 3 5 Max Kills in Single Turn 2 | 1 2 1 Gunslinging . | . . . Exploded 1 | . 1 . Melee . | . . . Uniques/NPCs Destroyed . | . . . Combat | -11 -10 -10 -------- Run | Yrd Mat Min Hostile Shots Fired 95 | . 75 20 Missed 29 | . 26 3 Hits 66 | . 49 17 Projectile 66 | . 49 17 Critical Strikes 2 | . 2 . Damage Taken 740 | . 592 148 Core 120 | . 82 38 Absorbed by Shields . | . . . Core Remaining (%) 100 | 100 . . Volleys Fired 92 | 4 74 14 Largest 2 | 2 2 2 Hottest 90 | 90 90 62 Shots Fired 180 | 8 144 28 Gun 150 | 8 127 15 Cannon 30 | . 17 13 Launcher . | . . . Special . | . . . Kinetic 113 | . 85 28 Thermal 67 | 8 59 . Explosive . | . . . Electromagnetic . | . . . Robot Hit Streak 10 | 3 10 6 Robot Miss Streak 6 | 1 3 6 Penetration Max . | . . . Secondary Targets 1 | . 1 . Max Gunslinging Chain 1 | . 1 . Shots Hit Robots 108 | 6 87 15 Core Hits 62 | 3 42 17 Critical Kills . | . . . Critical Parts Destroyed . | . . . Critical Strikes 4 | . 4 . Burn 4 | . 4 . Melee Attacks . | . . . Impact . | . . . Slashing . | . . . Piercing . | . . . Sneak Attacks . | . . . Combat Hostiles . | . . . Follow-up Attacks . | . . . Damage Inflicted 1536 | 67 1196 273 Guns 940 | 67 793 80 Cannons 395 | . 219 176 Explosions 184 | . 184 . Melee . | . . . Ramming 17 | . . 17 Kinetic 842 | . 586 256 Thermal 677 | 67 610 . Explosive . | . . . Electromagnetic . | . . . Impact . | . . . Slashing . | . . . Piercing . | . . . Highest Corruption 2 | . 2 2 Average Corruption 2 | . 2 2 Corruption Purged . | . . . Corruption Blocked . | . . . Effects 13 | . 3 10 Message Errors 3 | . . 3 Matter Fused 5 | . 3 2 Energy Discharges 1 | . . 1 Parts Rejected 1 | . . 1 Data Loss (minor) 1 | . . 1 Data Loss (major) 2 | . . 2 Overload Shots . | . . . Overflow Damage 35 | . 35 . Projectiles 5 | . 5 . Explosions 30 | . 30 . Melee . | . . . Knockbacks 5 | . 1 4 Impact . | . . . Kinetic 4 | . 1 3 Secondary 1 | . . 1 Self-Inflicted Damage . | . . . Shots . | . . . Rammed 2 | . . 2 Targets Rammed 2 | . . 2 Kicked . | . . . Crushed . | . . . Highest Temperature 190 | 90 190 106 Average Temperature 56 | 40 61 36 Received Heat Transfer 315 | . 303 12 Siege Activations . | . . . Martial Activations . | . . . Shielding Activations . | . . . Robots Disrupted . | . . . Combat Hostiles . | . . . Robots Corrupted . | . . . Combat Hostiles . | . . . Parts Fried . | . . . Impact Corruptions . | . . . Robots Melted . | . . . Combat Hostiles . | . . . Parts Melted 6 | . 6 . Heat Transferred 1866 | 174 1692 . Parts Sabotaged . | . . . Parts Stolen . | . . . Parts Stripped . | . . . Power Chain Reactions . | . . . Alert | -11 -10 -10 ------- Run | Yrd Mat Min Maximum Alert Level . | . . . Low Security (%) 100 | 100 100 100 Level 1 . | . . . Level 2 . | . . . Level 3 . | . . . Level 4 . | . . . Level 5 . | . . . High Security . | . . . Max Security . | . . . Sterilizations 1 | . 1 . Peak Influence 172 | 5 172 125 Initial 39 | . . 39 Average 54 | 1 69 36 Influence Increases 693 | 10 493 190 Destroy 0b10 Robot/C 440 | . 300 140 Destroy 0b10 Robot/NC 65 | 10 50 5 Destroy Leader 88 | . 58 30 Successful Hack 18 | . 18 . Disable Machine 30 | . 30 . Destroy Structure 7 | . 7 . Lose Combat Pursuer 45 | . 30 15 Influence Decreases 693 | 10 392 291 Entered New Map 62 | . . 62 Time Decay 631 | 10 392 229 Squads Dispatched 4 | . 3 1 Investigation 3 | . 2 1 Extermination . | . . . Reinforcement 1 | . 1 . Assault . | . . . Garrison . | . . . Intercept . | . . . Searches Triggered . | . . . Construction Impeded . | . . . Haulers Reinforced . | . . . Active Scanning Responses . | . . . Cargo Convoy Interrupts . | . . . Stealth | -11 -10 -10 --------- Run | Yrd Mat Min Distress Signals 1 | . 1 . Communications Jammed . | . . . Distress Signals . | . . . Times Spotted 36 | . 26 10 Peak Tracking Total 4 | . 4 3 Tactical Retreats 2 | . 1 1 Traps | -11 -10 -10 ------- Run | Yrd Mat Min Traps Triggered 2 | . 2 . Indirectly 1 | . 1 . Trap Hack Attempts . | . . . Triggered . | . . . Disarmed . | . . . Reprogrammed . | . . . Reused . | . . . Traps Extracted . | . . . Installed . | . . . Triggered . | . . . Machines | -11 -10 -10 ---------- Run | Yrd Mat Min Machines Disabled 2 | . 2 . Max in Single Turn 2 | . 2 . Machines Repaired . | . . . Machines Dismantled . | . . . Machines Sabotaged . | . . . Overloaded Fab Kills . | . . . Hacking | -11 -10 -10 --------- Run | Yrd Mat Min Machines Accessed 6 | . 5 1 Terminals 3 | . 3 . Fabricators . | . . . Repair Stations 1 | . 1 . Recycling Units 1 | . 1 . Scanalyzers . | . . . Garrison Access . | . . . Total Hacks 15 | . 14 1 Successful 5 | . 4 1 Failed 10 | . 10 . Catastrophic 1 | . 1 . Database Lockouts . | . . . Manual 7 | . 7 . Terminals 9 | . 9 . Fabricators . | . . . Repair Stations 3 | . 3 . Recycling Units 2 | . 2 . Scanalyzers . | . . . Garrison Access . | . . . Terminal Hacks 2 | . 1 1 Open Door 1 | . . 1 Locate Traps 1 | . 1 . Fabricator Hacks . | . . . Repair Station Hacks 1 | . 1 . Scan Component 1 | . 1 . Recycling Unit Hacks 1 | . 1 . Report Inventory 1 | . 1 . Scanalyzer . | . . . Garrison Access Hacks . | . . . Unauthorized Hacks 1 | . 1 . Terminals . | . . . Fabricators . | . . . Repair Stations . | . . . Recycling Units 1 | . 1 . Mask 1 | . 1 . Scanalyzers . | . . . Garrison Access . | . . . Data Cores Recovered . | . . . Used . | . . . Hacking Detections 4 | . 4 . Full Trace Events . | . . . Feedback Events . | . . . Feedback Blocked . | . . . Robot Schematics Acquired . | . . . Robots Built . | . . . Authchips . | . . . Time . | . . . Total Robot Build Rating . | . . . Part Schematics Acquired . | . . . Parts Built . | . . . Authchips . | . . . Time . | . . . Total Part Build Rating . | . . . Part Studies Acquired . | . . . Parts Repaired . | . . . Time . | . . . Parts Recycled . | . . . Recycled Matter . | . . . Retrieved Matter . | . . . Retrieved Components . | . . . Parts Scanalyzed . | . . . Part Schematics Acquired . | . . . Parts Damaged . | . . . Bothacking | -11 -10 -10 ------------ Run | Yrd Mat Min Used RIF Installer . | . . . Robots Hacked . | . . . Non-combat . | . . . Combat . | . . . Robot Hacks Applied . | . . . Relay Couplers Released . | . . . Fabnet Peak Effective % . | . . . Robots Rewired . | . . . Allies Hacked . | . . . Hacks Repelled . | . . . Allies | -11 -10 -10 -------- Run | Yrd Mat Min Total Allies 3 | . . 3 Largest Group 3 | . . 3 Highest-Rated Group 40 | . . 40 Highest-Rated Ally 16 | . . 16 Total Orders . | . . . Ally Attacks 1 | . . 1 Total Damage . | . . . Kills . | . . . Allies Corrupted . | . . . Allies Melted . | . . . X0-1V1 Amusement Gains 35 | . 30 5 Average Entertainment 33 | . 41 27 Good Acts 4 | . 1 3 Bad Acts 5 | . 3 2 Intel | -11 -10 -10 ------- Run | Yrd Mat Min Active Infowar (turns) 311 | 8 303 . Seismic 311 | 8 303 . Robot Analysis Total . | . . . Derelict Logs Recovered . | . . . Drone Launches . | . . . Drone Recoveries . | . . . Exploration | -11 -10 -10 ------------- Run | Yrd Mat Min Turns Passed 2301 | 83 1375 843 Spaces Moved 872 | 57 525 290 Core 5 | 5 . . Treads 391 | 2 99 290 Legs . | . . . Wheels 476 | 50 426 . Hover . | . . . Flight . | . . . Fastest Speed 50 | 50 100 250 Average Speed 195 | 97 173 255 Slowest Speed 360 | 160 360 260 Overloaded Moves . | . . . Propulsion Burnouts . | . . . Robots Hopped . | . . . Potential Cave-ins . | . . . Cave-ins Triggered . | . . . Exploration Rate (%) 48 | 3 61 81 Regions Visited 2 Branch Regions 1 Pre-discovered Areas . | . . . Known Exits Taken . | . . . Unknown Exits Taken 2 | 1 1 . Scrap Searched 1 | . . 1 Spaces Dug . | . . . Terrain Destroyed 6 | . 6 . Melee . | . . . Projectile 1 | . 1 . AOE 5 | . 5 . Terrain Rammed . | . . . Walls Destroyed . | . . . Machines Disabled . | . . . Actions | -11 -10 -10 --------- Run | Yrd Mat Min Total 1302 | 72 861 369 Wait 257 | 1 201 55 Move 870 | 56 524 290 Hop . | . . . Pick Up 44 | 4 38 2 Fast Attach 12 | 7 3 2 Attach 1 | . 1 . Detach 1 | . 1 . Swap 6 | . 5 1 Drop 17 | . 14 3 Fire 92 | 4 74 14 Melee . | . . . Ram . | . . . Kick . | . . . Crush 2 | . . 2 Escape Stasis . | . . . Rewire . | . . . Trap . | . . . Miscellaneous . | . . . Route ------- -11/Scrapyard -10/Materials (discovered 4 exits: [*Mat x2] / *Min / [*Sub]) -10/Mines (discovered 3 exits: [*Mat x2] / [*Sub]) History --------- Turn | Location | Event 3 | -11/Scrapyard | Discovered new exit (range 15) 84 | -11/Scrapyard | Entered Materials 300 | -10/Materials | Build established: Mutant 345 | -10/Materials | Discovered new exit (range 15) 753 | -10/Materials | Discovered new exit (range 12) 777 | -10/Materials | Discovered new exit (range 15) 867 | -10/Materials | Discovered new exit (range 8) 885 | -10/Materials | Made a sacrifice at D.C.S.S. Altar Unit 885 | -10/Materials | Forcibly received Sfc. Transmogifier from X0-1V1 886 | -10/Materials | Core integrity fell below 50% 930 | -10/Materials | Core integrity fell below 20% 1088 | -10/Materials | X0-1V1 made a cryptic comment about sterilization and BL-4Z3 1133 | -10/Materials | Core integrity restored by X0-1V1 (+15) 1305 | -10/Materials | Sterilization system engaged 1305 | -10/Materials | Non-combat units ordered to evacuate 1405 | -10/Materials | Combat units ordered to evacuate 1459 | -10/Materials | Entered Mines 1473 | -10/Mines | Met a Derelict who couldn't figure out how to use a Trap Extractor 1805 | -10/Mines | Discovered new exit (range 7) 2127 | -10/Mines | X0-1V1 activates XOMVISION 2147 | -10/Mines | Assisted by bots powering up and referring to "LRC-V3" 2235 | -10/Mines | Discovered new exit (range 10) 2287 | -10/Mines | Discovered new exit (range 15) 2302 | -10/Mines | Destroyed by S-10 Pest with Light Assault Rifle Last Messages --------------- 02112_ Slammed into K-01 Serf. 02115_ Sfc. Transmogrifier converts Lgt. Angular Momentum Engine into Cld. Fission Core. 02127_ Suggestive images of robots vie for attention in your data streams. 02127_ X0-1V1: "Enjoy your XOMVISION!" 02128_ System corrupted: Component data lost. 02147_ Trooper 1a: "Hello LRC-V3. What is your command?" 02147_ Mercenary 1a: "Hello LRC-V3. What is your command?" 02147_ Trooper 1b: "Hello LRC-V3. What is your command?" 02148_ Sfc. Transmogrifier converts Cld. Fission Core into Lgt. Fission Core. 02149_ Sfc. Transmogrifier converts Flak Cannon into Gauss Rifle. 02150_ X0-1V1 lends a hand with your twisted circuits (-2 system corruption). 02161_ T-07 Excavator is excavating. 02235_ EXIT=FOUND 02237_ T-07 Excavator is excavating. 02287_ EXIT=FOUND 02297_ Slug penetrates Wall. 02302_ X0-1V1 chortles! Map ----- +----------------------------------------------------+ | ????????#"! !! # ##???# #??## #???????####? | | ????????#"!^^ # ##??# #???## #??????????? | | ????????#" =!#X #### #????## ?????????? | | ????????#" ### #?????### ????????? | | ????????####?## #######????????# #???????? | | ??????????????## #???????????????###???????? | | ???????????????## ##????????????????????????? | | ????????????????## #????????????????????????? | | ?????????????????## #????????????????????????? | | ??????????????????## ##????????????????????????? | | ???????????????????#####?????????????????????????? | | ?????????????????????????????????????????????????? | | ?????????????????????????????????????????????????? | | ?????????????????????????????????????????????????? | | ????????????????#####????????????????????????????? | | ???????????????## ##???????????????????????????? | | ???????????????# #???????????????????????????? | | ???????????????# #???????????????????????????? | | ????????????????# #???????????????????????????? | | ????????????????# ##???????????????????????????? | | ???????????????## ##?????????????#??????????????? | | ??????????????## #????????????? ##???g?????????? | | ???#??????????# #??????????? #####"????????? | | ???#<###?????## #?????????? s????????? | | ??## ###### ########## s ???????? | | ??# ## # @ g u ???????? | | ??# # g g